[Event "Titled Tuesday Blitz June 21 Late 2022"]
[White "Mikhailov, Viacheslav"]
[Black "Bluebaum, Matthias"]
[WhiteFideId "4187369"]
[BlackFideId "24651516"]
[WhiteElo "2381"]
[BlackElo "2556"]
[Result "0-1"]
[Round "05"]
[TimeControl "180+1"]
[Date "2022.06.21"]
[WhiteClock "0:00:02"]
[BlackClock "0:01:44"]

1. Nf3 {[%clk 0:03:00]}  d5 {[%clk 0:02:58]} 2. g3 {[%clk 0:02:59]}  b6 {[%clk 0:02:59]} 3. Bg2 {[%clk 0:03:00]}  Bb7 {[%clk 0:02:59]} 4. O-O {[%clk 0:03:01]}  e6 {[%clk 0:02:58]} 5. c4 {[%clk 0:03:01]}  dxc4 {[%clk 0:02:59]} 6. Qc2 {[%clk 0:02:59]}  Nf6 {[%clk 0:02:57]} 7. Qxc4 {[%clk 0:02:58]}  a6 {[%clk 0:02:58]} 8. d3 {[%clk 0:02:56]}  Nbd7 {[%clk 0:02:56]} 9. Nc3 {[%clk 0:02:55]}  Be7 {[%clk 0:02:56]} 10. Bf4 {[%clk 0:02:52]}  c5 {[%clk 0:02:53]} 11. a4 {[%clk 0:02:47]}  O-O {[%clk 0:02:51]} 12. Rfc1 {[%clk 0:02:46]}  Nd5 {[%clk 0:02:46]} 13. Bd2 {[%clk 0:02:42]}  N7f6 {[%clk 0:02:39]} 14. Nxd5 {[%clk 0:02:35]}  Bxd5 {[%clk 0:02:40]} 15. Qc2 {[%clk 0:02:31]}  Rc8 {[%clk 0:02:38]} 16. Bc3 {[%clk 0:02:30]}  Qd7 {[%clk 0:02:32]} 17. Rd1 {[%clk 0:02:21]}  Rfd8 {[%clk 0:02:30]} 18. Ne5 {[%clk 0:02:17]}  Qc7 {[%clk 0:02:26]} 19. e4 {[%clk 0:02:15]}  Bb7 {[%clk 0:02:26]} 20. Nc4 {[%clk 0:02:15]}  Nd7 {[%clk 0:02:19]} 21. b3 {[%clk 0:02:08]}  Bf6 {[%clk 0:02:17]} 22. Bxf6 {[%clk 0:01:55]}  Nxf6 {[%clk 0:02:18]} 23. a5 {[%clk 0:01:56]}  b5 {[%clk 0:02:17]} 24. Nb6 {[%clk 0:01:56]}  Rb8 {[%clk 0:02:17]} 25. Rac1 {[%clk 0:01:56]}  Nd7 {[%clk 0:02:15]} 26. Nxd7 {[%clk 0:01:51]}  Rxd7 {[%clk 0:02:16]} 27. Qxc5 {[%clk 0:01:32]}  Qxa5 {[%clk 0:02:16]} 28. d4 {[%clk 0:01:31]}  Qd8 {[%clk 0:02:10]} 29. d5 {[%clk 0:01:10]}  exd5 {[%clk 0:02:11]} 30. exd5 {[%clk 0:01:11]}  h6 {[%clk 0:01:59]} 31. d6 {[%clk 0:00:58]}  Bxg2 {[%clk 0:01:58]} 32. Kxg2 {[%clk 0:00:59]}  Rb6 {[%clk 0:01:59]} 33. Qf5 {[%clk 0:00:28]}  g6 {[%clk 0:01:53]} 34. Qh3 {[%clk 0:00:28]}  Kg7 {[%clk 0:01:50]} 35. Rd3 {[%clk 0:00:08]}  Rbxd6 {[%clk 0:01:50]} 36. Rf3 {[%clk 0:00:08]}  Qa8 {[%clk 0:01:44]} 37. Qg4 {[%clk 0:00:02]}  Rf6 {[%clk 0:01:44]} 38. Qe4 {[%clk 0:00:02]}  Qxe4 {[%clk 0:01:44]} 0-1


[Site "https://www.chess.com"]

[Event "Titled Tuesday Blitz June 21 Late 2022"]
[White "Oro, Luis"]
[Black "Gubajdullin, Alexei"]
[WhiteFideId "104094"]
[BlackFideId "4141202"]
[WhiteElo "2380"]
[BlackElo "2280"]
[Result "0-1"]
[Round "05"]
[TimeControl "180+1"]
[Date "2022.06.22"]
[WhiteClock "0:00:01"]
[BlackClock "0:00:19"]

1. e4 {[%clk 0:02:59]}  g6 {[%clk 0:02:59]} 2. d4 {[%clk 0:02:59]}  Bg7 {[%clk 0:02:59]} 3. Nc3 {[%clk 0:02:57]}  d6 {[%clk 0:02:59]} 4. f4 {[%clk 0:02:53]}  c6 {[%clk 0:02:59]} 5. Nf3 {[%clk 0:02:52]}  Qb6 {[%clk 0:02:57]} 6. Be2 {[%clk 0:02:41]}  Bg4 {[%clk 0:02:56]} 7. e5 {[%clk 0:02:24]}  Nh6 {[%clk 0:02:55]} 8. Ne4 {[%clk 0:02:01]}  Nf5 {[%clk 0:02:54]} 9. c3 {[%clk 0:01:59]}  d5 {[%clk 0:02:52]} 10. Nf2 {[%clk 0:01:58]}  Bxf3 {[%clk 0:02:52]} 11. Bxf3 {[%clk 0:01:58]}  h5 {[%clk 0:02:52]} 12. O-O {[%clk 0:01:57]}  e6 {[%clk 0:02:51]} 13. Nd3 {[%clk 0:01:56]}  Nd7 {[%clk 0:02:50]} 14. b4 {[%clk 0:01:54]}  Nxd4 {[%clk 0:02:35]} 15. Kh1 {[%clk 0:01:18]}  Nxf3 {[%clk 0:02:32]} 16. Qxf3 {[%clk 0:01:19]}  O-O {[%clk 0:02:31]} 17. Be3 {[%clk 0:01:18]}  Qc7 {[%clk 0:02:30]} 18. g4 {[%clk 0:01:19]}  hxg4 {[%clk 0:02:28]} 19. Qxg4 {[%clk 0:01:20]}  b6 {[%clk 0:02:24]} 20. h4 {[%clk 0:01:19]}  c5 {[%clk 0:02:20]} 21. h5 {[%clk 0:01:19]}  Qc6 {[%clk 0:02:20]} 22. Rf3 {[%clk 0:01:16]}  d4 {[%clk 0:02:18]} 23. cxd4 {[%clk 0:01:13]}  cxd4 {[%clk 0:02:16]} 24. Bf2 {[%clk 0:01:11]}  Rfd8 {[%clk 0:02:07]} 25. Kg2 {[%clk 0:01:11]}  Nf8 {[%clk 0:02:05]} 26. Rh1 {[%clk 0:01:09]}  Qe4 {[%clk 0:02:03]} 27. Qh4 {[%clk 0:00:55]}  gxh5 {[%clk 0:01:59]} 28. Rh3 {[%clk 0:00:44]}  Ng6 {[%clk 0:01:56]} 29. Qxh5 {[%clk 0:00:43]}  Kf8 {[%clk 0:01:56]} 30. Rg3 {[%clk 0:00:42]}  Qxd3 {[%clk 0:01:53]} 31. f5 {[%clk 0:00:33]}  exf5 {[%clk 0:01:13]} 32. Rxg6 {[%clk 0:00:22]}  Qe4 {[%clk 0:01:12]} 33. Rg5 {[%clk 0:00:13]}  f4 {[%clk 0:00:51]} 34. Rf5 {[%clk 0:00:12]}  Rd7 {[%clk 0:00:48]} 35. Rxf4 {[%clk 0:00:12]}  Qd5 {[%clk 0:00:47]} 36. Bh4 {[%clk 0:00:05]}  Rc8 {[%clk 0:00:27]} 37. Qh7 {[%clk 0:00:03]}  Qxe5 {[%clk 0:00:21]} 38. Rf5 {[%clk 0:00:01]}  Rc2+ {[%clk 0:00:19]} 0-1


[Site "https://www.chess.com"]

[Event "Titled Tuesday Blitz June 21 Late 2022"]
[White "Paravyan, David"]
[Black "Rustemov, Alexander"]
[WhiteFideId "4194985"]
[BlackFideId "4119002"]
[WhiteElo "2569"]
[BlackElo "2733"]
[Result "1-0"]
[Round "05"]
[TimeControl "180+1"]
[Date "2022.06.21"]
[WhiteClock "0:01:11"]
[BlackClock "0:00:14"]

1. e4 {[%clk 0:03:00]}  e6 {[%clk 0:03:00]} 2. d4 {[%clk 0:03:00]}  d5 {[%clk 0:03:01]} 3. Nc3 {[%clk 0:03:01]}  dxe4 {[%clk 0:03:01]} 4. Nxe4 {[%clk 0:03:01]}  Bd7 {[%clk 0:03:02]} 5. Nf3 {[%clk 0:03:01]}  Bc6 {[%clk 0:03:02]} 6. Bd3 {[%clk 0:03:02]}  Nd7 {[%clk 0:03:03]} 7. c3 {[%clk 0:03:01]}  Ngf6 {[%clk 0:03:03]} 8. Nxf6+ {[%clk 0:03:02]}  Nxf6 {[%clk 0:03:04]} 9. O-O {[%clk 0:03:02]}  Bxf3 {[%clk 0:03:04]} 10. Qxf3 {[%clk 0:03:03]}  Qd5 {[%clk 0:03:02]} 11. Qxd5 {[%clk 0:03:02]}  Nxd5 {[%clk 0:03:02]} 12. Be4 {[%clk 0:03:00]}  c6 {[%clk 0:03:02]} 13. g3 {[%clk 0:03:01]}  Be7 {[%clk 0:03:02]} 14. Kg2 {[%clk 0:03:01]}  h5 {[%clk 0:03:01]} 15. h4 {[%clk 0:03:00]}  Rd8 {[%clk 0:02:59]} 16. Re1 {[%clk 0:03:00]}  g6 {[%clk 0:02:58]} 17. a4 {[%clk 0:02:59]}  a5 {[%clk 0:02:57]} 18. Bd2 {[%clk 0:02:59]}  Kf8 {[%clk 0:02:47]} 19. Rad1 {[%clk 0:02:57]}  Kg7 {[%clk 0:02:46]} 20. Bc2 {[%clk 0:02:57]}  Rd7 {[%clk 0:02:46]} 21. Bc1 {[%clk 0:02:58]}  Rhd8 {[%clk 0:02:44]} 22. Kf3 {[%clk 0:02:58]}  b5 {[%clk 0:02:43]} 23. axb5 {[%clk 0:02:55]}  cxb5 {[%clk 0:02:43]} 24. Bd3 {[%clk 0:02:56]}  Rb7 {[%clk 0:02:37]} 25. Bd2 {[%clk 0:02:53]}  a4 {[%clk 0:02:37]} 26. Ra1 {[%clk 0:02:53]}  Rc8 {[%clk 0:02:30]} 27. Reb1 {[%clk 0:02:53]}  a3 {[%clk 0:02:22]} 28. Be4 {[%clk 0:02:42]}  axb2 {[%clk 0:02:15]} 29. Rxb2 {[%clk 0:02:43]}  Rb6 {[%clk 0:01:29]} 30. Bxd5 {[%clk 0:02:33]}  exd5 {[%clk 0:01:29]} 31. Ra5 {[%clk 0:02:34]}  Rcb8 {[%clk 0:01:29]} 32. Bf4 {[%clk 0:02:27]}  R8b7 {[%clk 0:01:28]} 33. Rb3 {[%clk 0:02:23]}  f6 {[%clk 0:01:27]} 34. Ke2 {[%clk 0:02:22]}  Kf7 {[%clk 0:01:27]} 35. Kd3 {[%clk 0:02:21]}  Ke6 {[%clk 0:01:27]} 36. Bc1 {[%clk 0:02:10]}  b4 {[%clk 0:01:25]} 37. cxb4 {[%clk 0:02:10]}  Bxb4 {[%clk 0:01:21]} 38. Ra8 {[%clk 0:02:06]}  Bd6 {[%clk 0:01:19]} 39. Rxb6 {[%clk 0:02:05]}  Rxb6 {[%clk 0:01:20]} 40. Be3 {[%clk 0:02:04]}  Rb3+ {[%clk 0:01:15]} 41. Ke2 {[%clk 0:02:04]}  Rb2+ {[%clk 0:01:11]} 42. Kf3 {[%clk 0:02:04]}  Kf5 {[%clk 0:01:00]} 43. Ra5 {[%clk 0:02:02]}  Ke6 {[%clk 0:00:59]} 44. Ra6 {[%clk 0:02:03]}  Kd7 {[%clk 0:00:56]} 45. Ra8 {[%clk 0:01:42]}  Rb7 {[%clk 0:00:55]} 46. Rg8 {[%clk 0:01:40]}  Ke6 {[%clk 0:00:48]} 47. Rxg6 {[%clk 0:01:40]}  Rh7 {[%clk 0:00:47]} 48. Rg8 {[%clk 0:01:32]}  Kf7 {[%clk 0:00:40]} 49. Rd8 {[%clk 0:01:31]}  Ke6 {[%clk 0:00:40]} 50. Ra8 {[%clk 0:01:30]}  Be7 {[%clk 0:00:40]} 51. Ra6+ {[%clk 0:01:29]}  Kd7 {[%clk 0:00:39]} 52. Kf4 {[%clk 0:01:27]}  Bd6+ {[%clk 0:00:22]} 53. Kf5 {[%clk 0:01:27]}  Re7 {[%clk 0:00:21]} 54. Ra7+ {[%clk 0:01:25]}  Ke8 {[%clk 0:00:20]} 55. Rxe7+ {[%clk 0:01:22]}  Kxe7 {[%clk 0:00:20]} 56. Kg6 {[%clk 0:01:23]}  Ke6 {[%clk 0:00:16]} 57. Kxh5 {[%clk 0:01:22]}  Kf7 {[%clk 0:00:15]} 58. Kg4 {[%clk 0:01:22]}  Ke6 {[%clk 0:00:15]} 59. h5 {[%clk 0:01:16]}  Be7 {[%clk 0:00:14]} 60. h6 {[%clk 0:01:15]}  f5+ {[%clk 0:00:14]} 61. Kh5 {[%clk 0:01:15]}  Kf7 {[%clk 0:00:14]} 62. f3 {[%clk 0:01:11]}  Bf6 {[%clk 0:00:14]} 63. g4 {[%clk 0:01:11]} 1-0


[Site "https://www.chess.com"]

[Event "Titled Tuesday Blitz June 21 Late 2022"]
[White "Pinheiro, Iung Alicio de O."]
[Black "Mikhalsky, Vladimir"]
[WhiteFideId "2104350"]
[BlackFideId "14144352"]
[WhiteElo "2283"]
[BlackElo "2301"]
[Result "1-0"]
[Round "05"]
[TimeControl "180+1"]
[Date "2022.06.22"]
[WhiteClock "0:00:14"]
[BlackClock "0:00:05"]

1. e4 {[%clk 0:02:59]}  g6 {[%clk 0:03:00]} 2. d4 {[%clk 0:02:59]}  Bg7 {[%clk 0:03:00]} 3. Nc3 {[%clk 0:02:59]}  d6 {[%clk 0:02:59]} 4. Be3 {[%clk 0:02:57]}  Nf6 {[%clk 0:02:56]} 5. Qd2 {[%clk 0:02:54]}  Ng4 {[%clk 0:02:49]} 6. Bg5 {[%clk 0:02:53]}  h6 {[%clk 0:02:43]} 7. Bh4 {[%clk 0:02:52]}  Nc6 {[%clk 0:02:40]} 8. Nf3 {[%clk 0:02:51]}  a6 {[%clk 0:02:29]} 9. Bc4 {[%clk 0:02:39]}  b5 {[%clk 0:02:20]} 10. Bd5 {[%clk 0:02:37]}  Bb7 {[%clk 0:02:18]} 11. a3 {[%clk 0:02:37]}  Nf6 {[%clk 0:02:15]} 12. O-O {[%clk 0:02:29]}  g5 {[%clk 0:02:00]} 13. Bg3 {[%clk 0:02:28]}  Nxd5 {[%clk 0:01:53]} 14. exd5 {[%clk 0:02:23]}  Na5 {[%clk 0:01:48]} 15. b3 {[%clk 0:02:12]}  c6 {[%clk 0:01:47]} 16. h4 {[%clk 0:01:54]}  g4 {[%clk 0:01:42]} 17. Nh2 {[%clk 0:01:54]}  h5 {[%clk 0:01:39]} 18. Rfe1 {[%clk 0:01:43]}  cxd5 {[%clk 0:01:34]} 19. Qg5 {[%clk 0:01:43]}  Bf8 {[%clk 0:01:29]} 20. Nxd5 {[%clk 0:01:38]}  Bxd5 {[%clk 0:01:21]} 21. Qxd5 {[%clk 0:01:36]}  e6 {[%clk 0:01:12]} 22. Re2 {[%clk 0:00:48]}  Be7 {[%clk 0:01:10]} 23. Qe4 {[%clk 0:00:49]}  Rc8 {[%clk 0:01:00]} 24. Rae1 {[%clk 0:00:47]}  d5 {[%clk 0:00:54]} 25. Qd3 {[%clk 0:00:47]}  Rh6 {[%clk 0:00:44]} 26. f3 {[%clk 0:00:45]}  Rg6 {[%clk 0:00:29]} 27. fxg4 {[%clk 0:00:43]}  hxg4 {[%clk 0:00:29]} 28. h5 {[%clk 0:00:39]}  Rg8 {[%clk 0:00:29]} 29. h6 {[%clk 0:00:37]}  Kd7 {[%clk 0:00:24]} 30. h7 {[%clk 0:00:37]}  Rg6 {[%clk 0:00:22]} 31. a4 {[%clk 0:00:36]}  Qb6 {[%clk 0:00:17]} 32. axb5 {[%clk 0:00:35]}  axb5 {[%clk 0:00:16]} 33. Be5 {[%clk 0:00:34]}  Bf6 {[%clk 0:00:10]} 34. Bxf6 {[%clk 0:00:33]}  Rxf6 {[%clk 0:00:10]} 35. Nxg4 {[%clk 0:00:33]}  Rf5 {[%clk 0:00:09]} 36. Qxf5 {[%clk 0:00:25]}  exf5 {[%clk 0:00:09]} 37. Re7+ {[%clk 0:00:25]}  Kd6 {[%clk 0:00:09]} 38. Ne5 {[%clk 0:00:15]}  Qxd4+ {[%clk 0:00:09]} 39. Kf1 {[%clk 0:00:15]}  Qf4+ {[%clk 0:00:08]} 40. Nf3 {[%clk 0:00:15]}  Rxc2 {[%clk 0:00:08]} 41. h8=Q {[%clk 0:00:14]}  Nxb3 {[%clk 0:00:06]} 42. Qb8+ {[%clk 0:00:13]}  Kc5 {[%clk 0:00:05]} 43. Qxf4 {[%clk 0:00:14]} 1-0


[Site "https://www.chess.com"]

[Event "Titled Tuesday Blitz June 21 Late 2022"]
[White "Postnikov, Daniil"]
[Black "Nazari, Arad"]
[WhiteFideId "4166329"]
[BlackFideId "12577324"]
[WhiteElo "2525"]
[BlackElo "2694"]
[Result "1-0"]
[Round "05"]
[TimeControl "180+1"]
[Date "2022.06.22"]
[WhiteClock "0:00:14"]
[BlackClock "0:00:04"]

1. e4 {[%clk 0:02:56]}  c5 {[%clk 0:02:59]} 2. Nf3 {[%clk 0:02:54]}  d6 {[%clk 0:03:00]} 3. Bb5+ {[%clk 0:02:54]}  Nd7 {[%clk 0:02:58]} 4. d4 {[%clk 0:02:53]}  cxd4 {[%clk 0:02:58]} 5. Qxd4 {[%clk 0:02:54]}  a6 {[%clk 0:02:58]} 6. Bxd7+ {[%clk 0:02:54]}  Bxd7 {[%clk 0:02:59]} 7. c4 {[%clk 0:02:55]}  Rc8 {[%clk 0:02:54]} 8. Nc3 {[%clk 0:02:52]}  h6 {[%clk 0:02:52]} 9. O-O {[%clk 0:02:48]}  e5 {[%clk 0:02:52]} 10. Qd3 {[%clk 0:02:47]}  Nf6 {[%clk 0:02:53]} 11. a4 {[%clk 0:02:46]}  Be7 {[%clk 0:02:53]} 12. b3 {[%clk 0:02:47]}  O-O {[%clk 0:02:54]} 13. Ba3 {[%clk 0:02:46]}  Be6 {[%clk 0:02:52]} 14. Rfd1 {[%clk 0:02:45]}  Qb6 {[%clk 0:02:26]} 15. Nxe5 {[%clk 0:02:38]}  Qxb3 {[%clk 0:01:59]} 16. Rdb1 {[%clk 0:02:33]}  Qxa3 {[%clk 0:01:52]} 17. Rxa3 {[%clk 0:02:30]}  dxe5 {[%clk 0:01:53]} 18. Nd5 {[%clk 0:02:17]}  Bxa3 {[%clk 0:01:46]} 19. Nxf6+ {[%clk 0:01:18]}  gxf6 {[%clk 0:01:47]} 20. Qg3+ {[%clk 0:01:18]}  Kh7 {[%clk 0:01:41]} 21. Qxa3 {[%clk 0:01:18]}  Rg8 {[%clk 0:01:40]} 22. Rxb7 {[%clk 0:01:10]}  Rxc4 {[%clk 0:01:36]} 23. h3 {[%clk 0:01:07]}  Rxe4 {[%clk 0:01:29]} 24. Qd3 {[%clk 0:01:03]}  f5 {[%clk 0:01:29]} 25. Qxa6 {[%clk 0:01:02]}  Re1+ {[%clk 0:01:30]} 26. Kh2 {[%clk 0:01:02]}  Bd5 {[%clk 0:01:30]} 27. f3 {[%clk 0:00:53]}  Bxb7 {[%clk 0:01:15]} 28. Qxb7 {[%clk 0:00:54]}  Rg7 {[%clk 0:01:14]} 29. Qd7 {[%clk 0:00:53]}  Re2 {[%clk 0:01:10]} 30. Qxf5+ {[%clk 0:00:53]}  Kh8 {[%clk 0:01:09]} 31. Qc8+ {[%clk 0:00:43]}  Rg8 {[%clk 0:01:09]} 32. Qc5 {[%clk 0:00:34]}  Rexg2+ {[%clk 0:00:43]} 33. Kh1 {[%clk 0:00:33]}  f6 {[%clk 0:00:33]} 34. Qc1 {[%clk 0:00:25]}  Kh7 {[%clk 0:00:26]} 35. a5 {[%clk 0:00:23]}  R2g7 {[%clk 0:00:18]} 36. a6 {[%clk 0:00:17]}  Ra7 {[%clk 0:00:09]} 37. Qb1+ {[%clk 0:00:13]}  Kg7 {[%clk 0:00:08]} 38. Qg1+ {[%clk 0:00:13]}  Kh8 {[%clk 0:00:04]} 39. Qxa7 {[%clk 0:00:14]} 1-0


[Site "https://www.chess.com"]

[Event "Titled Tuesday Blitz June 21 Late 2022"]
[White "Quirke, Jeffrey"]
[Black "Jovic, Stanoje"]
[WhiteFideId "2013029"]
[BlackFideId "905020"]
[WhiteElo "2193"]
[BlackElo "2286"]
[Result "0-1"]
[Round "05"]
[TimeControl "180+1"]
[Date "2022.06.22"]
[WhiteClock "0:01:44"]
[BlackClock "0:02:36"]

1. e4 {[%clk 0:03:00]}  c6 {[%clk 0:02:59]} 2. c4 {[%clk 0:02:58]}  d5 {[%clk 0:02:59]} 3. cxd5 {[%clk 0:02:58]}  cxd5 {[%clk 0:02:59]} 4. exd5 {[%clk 0:02:59]}  Nf6 {[%clk 0:02:59]} 5. Qa4+ {[%clk 0:02:54]}  Nbd7 {[%clk 0:02:58]} 6. Bc4 {[%clk 0:02:35]}  g6 {[%clk 0:02:58]} 7. d3 {[%clk 0:02:35]}  Bg7 {[%clk 0:02:58]} 8. Nc3 {[%clk 0:02:32]}  O-O {[%clk 0:02:57]} 9. Nf3 {[%clk 0:02:32]}  a6 {[%clk 0:02:55]} 10. O-O {[%clk 0:02:27]}  b5 {[%clk 0:02:53]} 11. Qa3 {[%clk 0:01:55]}  bxc4 {[%clk 0:02:49]} 12. dxc4 {[%clk 0:01:56]}  Nb6 {[%clk 0:02:44]} 13. b3 {[%clk 0:01:44]}  Nfxd5 {[%clk 0:02:36]} 0-1


[Site "https://www.chess.com"]

[Event "Titled Tuesday Blitz June 21 Late 2022"]
[White "Remolar Gallen, Jose"]
[Black "Jiganchine, Roman"]
[WhiteFideId "2215187"]
[BlackFideId "2603667"]
[WhiteElo "2205"]
[BlackElo "2205"]
[Result "0-1"]
[Round "05"]
[TimeControl "180+1"]
[Date "2022.06.22"]
[WhiteClock "0:00:01"]
[BlackClock "0:00:05"]

1. e4 {[%clk 0:02:33]}  c6 {[%clk 0:02:54]} 2. d4 {[%clk 0:02:31]}  d5 {[%clk 0:02:54]} 3. e5 {[%clk 0:02:31]}  Bf5 {[%clk 0:02:53]} 4. Nf3 {[%clk 0:02:25]}  e6 {[%clk 0:02:53]} 5. c3 {[%clk 0:02:17]}  Nd7 {[%clk 0:02:53]} 6. Qb3 {[%clk 0:02:16]}  Qb6 {[%clk 0:02:52]} 7. Be3 {[%clk 0:02:10]}  h6 {[%clk 0:02:50]} 8. Nbd2 {[%clk 0:02:10]}  Bh7 {[%clk 0:02:37]} 9. Be2 {[%clk 0:02:10]}  Ne7 {[%clk 0:02:36]} 10. O-O {[%clk 0:02:08]}  Nf5 {[%clk 0:02:35]} 11. c4 {[%clk 0:01:42]}  Qxb3 {[%clk 0:02:22]} 12. axb3 {[%clk 0:01:39]}  Bb4 {[%clk 0:02:22]} 13. Rfc1 {[%clk 0:01:30]}  O-O {[%clk 0:02:15]} 14. Ra4 {[%clk 0:01:19]}  a5 {[%clk 0:02:14]} 15. cxd5 {[%clk 0:01:17]}  exd5 {[%clk 0:02:12]} 16. Nf1 {[%clk 0:01:13]}  Rfe8 {[%clk 0:02:10]} 17. Bd2 {[%clk 0:01:08]}  Bxd2 {[%clk 0:01:56]} 18. N1xd2 {[%clk 0:01:09]}  Nb6 {[%clk 0:01:50]} 19. Raa1 {[%clk 0:01:07]}  a4 {[%clk 0:01:49]} 20. bxa4 {[%clk 0:01:07]}  Nxa4 {[%clk 0:01:46]} 21. b3 {[%clk 0:01:03]}  Nb6 {[%clk 0:01:46]} 22. Nf1 {[%clk 0:00:54]}  Nd7 {[%clk 0:01:44]} 23. Ng3 {[%clk 0:00:53]}  Nxg3 {[%clk 0:01:43]} 24. hxg3 {[%clk 0:00:54]}  Nf8 {[%clk 0:01:43]} 25. Ra4 {[%clk 0:00:46]}  Ne6 {[%clk 0:01:38]} 26. Rca1 {[%clk 0:00:44]}  Rxa4 {[%clk 0:01:37]} 27. Rxa4 {[%clk 0:00:44]}  Bc2 {[%clk 0:01:35]} 28. Ra7 {[%clk 0:00:43]}  Rb8 {[%clk 0:01:31]} 29. b4 {[%clk 0:00:42]}  Be4 {[%clk 0:01:30]} 30. b5 {[%clk 0:00:38]}  Bxf3 {[%clk 0:01:29]} 31. Bxf3 {[%clk 0:00:38]}  Nxd4 {[%clk 0:01:28]} 32. bxc6 {[%clk 0:00:39]}  bxc6 {[%clk 0:01:20]} 33. Bg4 {[%clk 0:00:35]}  g6 {[%clk 0:01:01]} 34. Rc7 {[%clk 0:00:32]}  Rb6 {[%clk 0:00:47]} 35. Rc8+ {[%clk 0:00:31]}  Kg7 {[%clk 0:00:46]} 36. Bd7 {[%clk 0:00:31]}  Rb1+ {[%clk 0:00:40]} 37. Kh2 {[%clk 0:00:31]}  Rc1 {[%clk 0:00:40]} 38. Rc7 {[%clk 0:00:28]}  Kf8 {[%clk 0:00:39]} 39. Bc8 {[%clk 0:00:25]}  c5 {[%clk 0:00:37]} 40. Bb7 {[%clk 0:00:23]}  c4 {[%clk 0:00:19]} 41. Bxd5 {[%clk 0:00:23]}  c3 {[%clk 0:00:19]} 42. Rxf7+ {[%clk 0:00:23]}  Ke8 {[%clk 0:00:19]} 43. Rc7 {[%clk 0:00:21]}  c2 {[%clk 0:00:18]} 44. Be4 {[%clk 0:00:20]}  Kd8 {[%clk 0:00:15]} 45. Rc4 {[%clk 0:00:19]}  Ne2 {[%clk 0:00:12]} 46. Rxc2 {[%clk 0:00:19]}  Rxc2 {[%clk 0:00:12]} 47. Bxc2 {[%clk 0:00:20]}  g5 {[%clk 0:00:12]} 48. Bg6 {[%clk 0:00:20]}  Ke7 {[%clk 0:00:12]} 49. Kh3 {[%clk 0:00:19]}  Ke6 {[%clk 0:00:12]} 50. Kg4 {[%clk 0:00:19]}  Kxe5 {[%clk 0:00:12]} 51. Kh5 {[%clk 0:00:19]}  Kf6 {[%clk 0:00:12]} 52. Kxh6 {[%clk 0:00:19]}  Nd4 {[%clk 0:00:11]} 53. Bd3 {[%clk 0:00:19]}  Ne6 {[%clk 0:00:11]} 54. g4 {[%clk 0:00:18]}  Nf4 {[%clk 0:00:11]} 55. Be4 {[%clk 0:00:16]}  Ne6 {[%clk 0:00:09]} 56. g3 {[%clk 0:00:16]}  Nc5 {[%clk 0:00:09]} 57. Bd5 {[%clk 0:00:15]}  Nd3 {[%clk 0:00:09]} 58. f3 {[%clk 0:00:09]}  Ne5 {[%clk 0:00:08]} 59. Be4 {[%clk 0:00:08]}  Nf7+ {[%clk 0:00:07]} 60. Kh7 {[%clk 0:00:07]}  Ne5 {[%clk 0:00:07]} 61. Kg8 {[%clk 0:00:07]}  Nf7 {[%clk 0:00:07]} 62. Kf8 {[%clk 0:00:07]}  Nd6 {[%clk 0:00:07]} 63. Bd5 {[%clk 0:00:04]}  Nb5 {[%clk 0:00:06]} 64. Bc6 {[%clk 0:00:01]}  Nd4 {[%clk 0:00:05]} 65. Be4 {[%clk 0:00:01]}  Ne2 {[%clk 0:00:05]} 0-1


[Site "https://www.chess.com"]

[Event "Titled Tuesday Blitz June 21 Late 2022"]
[White "Roberson, Peter T"]
[Black "Daggupati, Balaji"]
[WhiteFideId "412384"]
[BlackFideId "2090759"]
[WhiteElo "2525"]
[BlackElo "2675"]
[Result "1-0"]
[Round "05"]
[TimeControl "180+1"]
[Date "2022.06.22"]
[WhiteClock "0:00:19"]
[BlackClock "0:00:14"]

1. e4 {[%clk 0:03:00]}  c5 {[%clk 0:02:59]} 2. Nf3 {[%clk 0:02:59]}  e6 {[%clk 0:02:59]} 3. d3 {[%clk 0:02:57]}  d5 {[%clk 0:02:58]} 4. Nbd2 {[%clk 0:02:58]}  Nc6 {[%clk 0:02:57]} 5. g3 {[%clk 0:02:58]}  g6 {[%clk 0:02:57]} 6. Bg2 {[%clk 0:02:59]}  Bg7 {[%clk 0:02:57]} 7. O-O {[%clk 0:02:59]}  Nge7 {[%clk 0:02:58]} 8. Re1 {[%clk 0:03:00]}  O-O {[%clk 0:02:58]} 9. c3 {[%clk 0:03:01]}  b6 {[%clk 0:02:54]} 10. e5 {[%clk 0:03:00]}  d4 {[%clk 0:02:53]} 11. c4 {[%clk 0:02:51]}  Bb7 {[%clk 0:02:50]} 12. Nf1 {[%clk 0:02:50]}  Qc7 {[%clk 0:02:46]} 13. Bf4 {[%clk 0:02:50]}  h6 {[%clk 0:02:46]} 14. h4 {[%clk 0:02:50]}  Nf5 {[%clk 0:02:28]} 15. N1h2 {[%clk 0:02:47]}  h5 {[%clk 0:02:24]} 16. a3 {[%clk 0:02:43]}  a6 {[%clk 0:02:23]} 17. Qd2 {[%clk 0:02:41]}  b5 {[%clk 0:02:23]} 18. Rac1 {[%clk 0:02:22]}  bxc4 {[%clk 0:02:18]} 19. Rxc4 {[%clk 0:02:21]}  Na5 {[%clk 0:02:18]} 20. Rc2 {[%clk 0:02:19]}  Qb6 {[%clk 0:02:06]} 21. g4 {[%clk 0:02:10]}  hxg4 {[%clk 0:02:05]} 22. Nxg4 {[%clk 0:02:11]}  Rfd8 {[%clk 0:01:46]} 23. Bg5 {[%clk 0:02:07]}  Rdc8 {[%clk 0:01:09]} 24. Bf6 {[%clk 0:02:06]}  c4 {[%clk 0:00:56]} 25. Bxg7 {[%clk 0:02:01]}  Kxg7 {[%clk 0:00:56]} 26. h5 {[%clk 0:01:56]}  Rh8 {[%clk 0:00:56]} 27. hxg6 {[%clk 0:01:49]}  fxg6 {[%clk 0:00:57]} 28. dxc4 {[%clk 0:01:47]}  Rh5 {[%clk 0:00:50]} 29. Nf6 {[%clk 0:01:45]}  Bxf3 {[%clk 0:00:44]} 30. Nxh5+ {[%clk 0:01:42]}  Bxh5 {[%clk 0:00:43]} 31. Bxa8 {[%clk 0:01:42]}  Nb3 {[%clk 0:00:37]} 32. Qg5 {[%clk 0:01:41]}  d3 {[%clk 0:00:36]} 33. Rc3 {[%clk 0:00:47]}  d2 {[%clk 0:00:35]} 34. Rf1 {[%clk 0:00:47]}  Nbd4 {[%clk 0:00:32]} 35. Rd3 {[%clk 0:00:41]}  d1=Q {[%clk 0:00:17]} 36. Rfxd1 {[%clk 0:00:38]}  Bxd1 {[%clk 0:00:17]} 37. Rxd1 {[%clk 0:00:36]}  Qb8 {[%clk 0:00:17]} 38. Qf6+ {[%clk 0:00:34]}  Kh7 {[%clk 0:00:17]} 39. Rd3 {[%clk 0:00:28]}  Ne2+ {[%clk 0:00:13]} 40. Kf1 {[%clk 0:00:28]}  Nf4 {[%clk 0:00:13]} 41. Rd7+ {[%clk 0:00:22]}  Kh6 {[%clk 0:00:14]} 42. Rd8 {[%clk 0:00:19]} 1-0


[Site "https://www.chess.com"]